fUST/lending_fUST_20250413
["ID","MTS","AMOUNT","RATE_DAILY","PERIOD"]
[357915757,1744547574232,-238.0,0.0002213,2]
[357915758,1744547574241,-238.0,0.0002213,2]
[357915759,1744547574251,-238.0,0.0002213,2]
[357915760,1744547574260,-238.0,0.0002213,2]
[357915761,1744547574270,-238.0,0.0002213,2]
[357915762,1744547574279,-238.0,0.0002213,2]
[357915763,1744547574290,-238.0,0.0002213,2]
[357915764,1744547574299,-238.0,0.0002213,2]
[357915765,1744547574308,-238.0,0.0002213,2]
[357915766,1744547574318,-238.0,0.0002213,2]
[357915767,1744547574328,-238.0,0.0002213,2]
[357915768,1744547574338,-238.0,0.0002213,2]
[357915769,1744547574348,-238.0,0.0002213,2]
[357915770,1744547574358,-500.0,0.00022137,2]
[357915771,1744547574368,-650.69307784,0.00022192,2]
[357915772,1744547574377,-419.89681905,0.00022457,2]
[357915773,1744547574387,-160.0,0.0002246,2]
[357915774,1744547574397,-12544.73749783,0.0002246,2]
[357915775,1744547574407,-312.44791667,0.0002246,2]
[357915776,1744547574416,-160.0,0.00022464,2]
[357915777,1744547574426,-160.0,0.00022464,2]
[357915778,1744547574436,-160.0,0.00022464,2]
[357915779,1744547574446,-500.0,0.00022466,2]
[357915780,1744547574455,-500.0,0.00022573,2]
[357915781,1744547574465,-160.0,0.00022657,5]
[357915782,1744547574475,-1564.38284236,0.000229,2]
[357915783,1744547574485,-20007.586667,0.0002296,2]
[357915784,1744547574494,-246.44778337,0.00023,2]
[357915785,1744547574505,-160.0,0.00023,2]
[357915786,1744547574514,-883.68881699,0.00023,2]
[357915787,1744547574524,-154.0,0.00023,2]
[357915788,1744547574535,-160.0,0.00023,3]
[357915789,1744547574544,-419.89681905,0.00023,3]
[357915790,1744547574555,-2000.0,0.00023,4]
[357915791,1744547574565,-203.53023652,0.00023,2]
[357915792,1744547574575,-160.0,0.00023,3]
[357915793,1744547574585,-1000.0,0.00023014,2]
[357915794,1744547574595,-1500.0,0.00023164,2]
[357915795,1744547574605,-160.0,0.00023258,6]
[357915796,1744547574615,-151.0,0.00023273,2]
[357915797,1744547574625,-823.0,0.00023464,2]
[357915798,1744547574635,-1500.0,0.00023562,2]
[357915799,1744547574645,-160.0,0.00023858,7]
[357915800,1744547574655,-1672.59491774,0.00024,2]
[357915801,1744547574665,-2000.0,0.00024,4]
[357915802,1744547574674,-500.0,0.00024109,2]
[357915803,1744547574684,-500.0,0.00024109,2]
[357915804,1744547574694,-500.0,0.00024109,2]
[357915805,1744547574704,-500.0,0.00024109,2]
[357915806,1744547574714,-500.0,0.00024109,2]
[357915807,1744547574723,-505.12,0.00024109,2]
[357915808,1744547574734,-2000.0,0.0002411,2]
[357915809,1744547574744,-154.0,0.00024255,2]
[357915810,1744547574754,-1500.0,0.0002426,2]
[357915811,1744547574764,-160.0,0.00024459,8]
[357915812,1744547574777,-162.33469181,0.00024459,5]
[357915813,1744547574789,-1431.71185002,0.00024527,2]
[357915814,1744547574798,-300.0,0.00024642,2]
[357915815,1744547574809,-953.39526467,0.00024652,2]
[357915816,1744547574819,-1000.0,0.00024652,2]
[357915817,1744547574830,-1000.0,0.00024652,2]
[357915818,1744547574840,-1000.0,0.00024652,2]
[357915819,1744547574852,-1000.0,0.00024652,2]
[357915820,1744547574862,-1000.0,0.00024652,2]
[357915821,1744547574872,-1000.0,0.00024652,2]
[357915822,1744547574883,-1000.0,0.00024652,2]
[357915823,1744547574894,-1000.0,0.00024652,2]
[357915824,1744547574904,-1000.0,0.00024652,2]
[357915825,1744547574914,-1000.0,0.00024652,2]
[357915826,1744547574924,-1000.0,0.00024652,2]
[357915827,1744547574935,-1000.0,0.00024652,2]
[357915828,1744547574945,-194.80074453,0.00024652,2]
[357915829,1744547574955,-1000.0,0.00024652,2]
[357915830,1744547574965,-1000.0,0.00024652,2]
[357915831,1744547574976,-1000.0,0.00024652,2]
[357915832,1744547574985,-724.10404573,0.00024652,2]
[357915833,1744547574996,-1000.0,0.00024652,2]
[357915834,1744547575006,-539.02075636,0.00024652,2]
[357915835,1744547575016,-1000.0,0.00024652,2]
[357915836,1744547575027,-1000.0,0.00024652,2]
[357915837,1744547575040,-1000.0,0.00024652,2]
[357915838,1744547575050,-1000.0,0.00024652,2]
[357915839,1744547575061,-1000.0,0.00024652,2]
[357915840,1744547575071,-1118.75465397,0.00024652,2]
[357915841,1744547575081,-507.65595825,0.00024652,2]
[357915842,1744547575091,-1000.0,0.00024652,2]
[357915843,1744547575102,-503.36454205,0.00024652,2]
[357915844,1744547575112,-1000.0,0.00024652,2]
[357915845,1744547575122,-1000.0,0.00024652,2]
[357915846,1744547575131,-1000.0,0.00024652,2]
[357915847,1744547575141,-1000.0,0.00024652,2]
[357915848,1744547575150,-1000.0,0.00024652,2]
[357915849,1744547575160,-1000.0,0.00024652,2]
[357915850,1744547575170,-1000.0,0.00024657,2]
[357915851,1744547575180,-1000.0,0.00024657,2]
[357915852,1744547575190,-1000.0,0.00024657,2]
[357915853,1744547575200,-1000.0,0.00024657,2]
[357915854,1744547575210,-714.54331634,0.00024657,2]
[357915855,1744547575220,-500.0,0.00024657,2]
[357915856,1744547575230,-500.0,0.00024657,2]
[357915857,1744547575241,-500.0,0.00024657,2]
[357915858,1744547575251,-302.33078373,0.00024657,2]
[357915859,1744547575261,-1030.76,0.00024657,2]
[357915860,1744547575271,-1030.76,0.00024657,2]
[357915861,1744547575280,-1030.76,0.00024657,2]
[357915862,1744547575291,-1030.76,0.00024657,2]
[357915863,1744547575301,-1030.76,0.00024657,2]
[357915864,1744547575311,-1030.76,0.00024657,2]
[357915865,1744547575321,-1030.76,0.00024657,2]
[357915866,1744547575331,-1030.76,0.00024657,2]
[357915867,1744547575342,-1030.76,0.00024657,2]
[357915868,1744547575352,-1030.76,0.00024657,2]
[357915869,1744547575362,-1030.76,0.00024657,2]
[357915870,1744547575371,-1030.76,0.00024657,2]
[357915871,1744547575381,-1030.76,0.00024657,2]
[357915872,1744547575390,-1030.76,0.00024657,2]
[357915873,1744547575400,-1030.76,0.00024657,2]
[357915874,1744547575410,-1030.76,0.00024657,2]
[357915875,1744547575420,-1030.76,0.00024657,2]
[357915876,1744547575429,-1030.76,0.00024657,2]
[357915877,1744547575440,-1030.76,0.00024657,2]
[357915878,1744547575450,-1030.76,0.00024657,2]
[357915879,1744547575460,-1030.76,0.00024657,2]
[357915880,1744547575470,-1030.76,0.00024657,2]
[357915881,1744547575480,-1030.76,0.00024657,2]
[357915882,1744547575490,-1030.92615734,0.00024657,2]
[357915883,1744547575501,-2500.0,0.00024658,2]
[357915884,1744547575511,-151.0,0.00024658,7]
[357915885,1744547575521,-151.0,0.00024658,7]
[357915886,1744547575531,-151.0,0.00024658,7]
[357915887,1744547575541,-152.655133,0.00024658,7]
[357915888,1744547575552,-200.0,0.00024658,2]
[357915889,1744547575561,-380.0,0.00024658,2]
[357915890,1744547575571,-616.10276172,0.00024658,2]
[357915891,1744547575581,-443.81880687,0.00024658,2]
[357915892,1744547575592,-500.0,0.00024658,2]
[357915893,1744547575601,-2595.414682,0.000248,2]
[357915894,1744547575610,-150.10699039,0.0002485,2]
[357915895,1744547575620,-200000.0,0.00025,2]
[357915896,1744547575630,-7000.0,0.00025,2]
[357915897,1744547575640,-2000.0,0.00025,4]
[357915898,1744547575650,-459.04112,0.00025184,15]
[357915899,1744547575660,-3000.0,0.00025205,2]
[357915900,1744547575669,-705.36771062,0.00025275,2]
[357915901,1744547575680,-1500.0,0.00025356,7]
[357915902,1744547575689,-1152.0,0.000256,2]
[357915903,1744547575700,-3500.0,0.00025753,2]
[357915904,1744547575709,-23049.67994189,0.00025756,2]
[357915905,1744547575718,-2000.0,0.00026,14]
[357915906,1744547575728,-2000.0,0.00026,14]
[357915907,1744547575737,-2233.0,0.00026,14]
[357915908,1744547575747,-2000.0,0.00026,4]
[357915909,1744547575757,-500.0,0.00026052,2]
[357915910,1744547575769,-287.14,0.00026077,7]
[357915911,1744547575779,-600.0,0.00026157,2]
[357915912,1744547575790,-1500.0,0.00026178,7]
[357915913,1744547575799,-400.0,0.000263,2]
[357915914,1744547575810,-3513.74757205,0.00026301,2]
[357915915,1744547575821,-600.0,0.00026532,2]
[357915916,1744547575831,-1907.22840407,0.00026548,2]
[357915917,1744547575841,-500.0,0.00026573,2]
[357915918,1744547575851,-160.0,0.000267,3]
[357915919,1744547575861,-600.0,0.00026749,2]
[357915920,1744547575871,-481.86,0.00026811,7]
[357915921,1744547575880,-600.0,0.00026924,2]
[357915922,1744547575889,-600.0,0.00026951,2]
[357915923,1744547575898,-600.0,0.00026976,2]
[357915924,1744547575908,-20088.65207829,0.00027,2]
[357915925,1744547575917,-531.71,0.00027,2]
[357915926,1744547575927,-2180.0,0.00027,2]
[357915927,1744547575937,-194528.12240734,0.00027,5]
[357915928,1744547575946,-500.0,0.00027,15]
[357915929,1744547575955,-500.0,0.00027,15]
[357915930,1744547575965,-504.06654438,0.00027,15]
[357915931,1744547575974,-500.0,0.00027,15]
[357915932,1744547575983,-1015.37,0.00027,2]
[357915933,1744547575992,-2000.0,0.00027,4]
[357915934,1744547576002,-500.0,0.00027093,2]
[357915935,1744547576011,-347.585348,0.00027105,2]
[357915936,1744547576021,-501.28768463,0.00027352,2]
[357915937,1744547576032,-198.99467541,0.00027352,2]
[357915938,1744547576041,-606.87818694,0.00027352,2]
[357915939,1744547576051,-1000.0,0.00027352,2]
[357915940,1744547576061,-1000.0,0.00027352,2]
[357915941,1744547576070,-186.27927113,0.00027352,2]
[357915942,1744547576080,-933.46612018,0.00027352,2]
[357915943,1744547576089,-1007.27394237,0.00027352,2]
[357915944,1744547576099,-1000.0,0.00027397,5]
[357915945,1744547576108,-1000.0,0.00027397,5]
[357915946,1744547576118,-1000.0,0.00027397,5]
[357915947,1744547576127,-1000.0,0.00027397,5]
[357915948,1744547576136,-1000.0,0.00027397,5]
[357915949,1744547576146,-353.30311518,0.00027397,5]
[357915950,1744547576155,-509.90079013,0.00027397,2]
[357915951,1744547576165,-501.9248483,0.00027397,2]
[357915952,1744547576175,-500.0,0.00027397,2]
[357915953,1744547576184,-500.0,0.00027397,5]
[357915954,1744547576194,-1000.0,0.00027452,5]
[357915955,1744547576204,-1108.0024629,0.00027452,5]
[357915956,1744547576213,-501.55994573,0.00027452,5]
[357915957,1744547576223,-1000.0,0.00027452,5]
[357915958,1744547576233,-505.23554466,0.00027452,5]
[357915959,1744547576242,-505.15134109,0.00027452,5]
[357915960,1744547576252,-1000.0,0.00027452,2]
[357915961,1744547576262,-502.61536689,0.00027452,5]
[357915962,1744547576271,-501.02794676,0.00027452,5]
[357915963,1744547576282,-1003.98447289,0.00027452,5]
[357915964,1744547576292,-336.92367175,0.00027452,5]
[357915965,1744547576302,-1103.92020957,0.00027452,5]
[357915966,1744547576311,-1000.0,0.00027452,5]
[357915967,1744547576321,-1000.0,0.00027452,5]
[357915968,1744547576331,-200.74505481,0.00027452,5]
[357915969,1744547576340,-1000.0,0.00027452,5]
[357915970,1744547576349,-1000.0,0.00027452,5]
[357915971,1744547576359,-1000.0,0.00027452,5]
[357915972,1744547576368,-503.83596472,0.00027452,5]
[357915973,1744547576377,-1000.0,0.00027452,5]
[357915974,1744547576387,-606.10898708,0.00027452,5]
[357915975,1744547576397,-606.99588402,0.00027452,5]
[357915976,1744547576406,-1017.20268,0.00027452,5]
[357915977,1744547576415,-502.93057972,0.00027452,5]
[357915978,1744547576424,-1118.08273459,0.00027452,5]
[357915979,1744547576434,-175.06530492,0.00027452,5]
[357915980,1744547576443,-600.0,0.00027493,2]
[357915981,1744547576453,-473.41,0.00027545,14]
[357915982,1744547576462,-600.0,0.00027735,2]
[357915983,1744547576471,-600.0,0.00027775,2]
[357915984,1744547576481,-500.0,0.000278,2]
[357915985,1744547576491,-1500.0,0.00027822,7]
[357915986,1744547576501,-1564.38284236,0.000279,2]
[357915987,1744547576511,-500.0,0.00027925,2]
[357915988,1744547576520,-1613.0,0.00027931,2]
[357915989,1744547576529,-500.0,0.0002794,2]
[357915990,1744547576539,-600.0,0.00027972,2]
[357915991,1744547576549,-500.0,0.00027977,2]
[357915992,1744547576558,-1186.35009972,0.0002799,7]
[357915993,1744547576568,-2797.13673445,0.0002799,2]
[357915994,1744547576578,-501.05,0.00028,7]
[357915995,1744547576587,-2000.0,0.00028,2]
[357915996,1744547576597,-818.24289427,0.00028,2]
[357915997,1744547576606,-312.44791667,0.00028,10]
[357915998,1744547576616,-2000.0,0.00028,4]
[357915999,1744547576626,-500.0,0.00028018,2]
[357916000,1744547576636,-600.0,0.00028085,2]
[357916001,1744547576646,-600.0,0.00028266,2]
[357916002,1744547576656,-600.0,0.00028271,2]
[357916003,1744547576666,-500.0,0.00028414,2]
[357916004,1744547576675,-600.0,0.00028446,2]
[357916005,1744547576685,-1574.19290768,0.000285,7]
[357916006,1744547576695,-150.17010903,0.000285,5]
[357916007,1744547576704,-600.0,0.00028619,2]
[357916008,1744547576714,-500.0,0.00028629,2]
[357916009,1744547576724,-500.0,0.00028638,2]
[357916010,1744547576734,-600.0,0.00028676,2]
[357916011,1744547576744,-166.68237139,0.000288,7]
[357916012,1744547576754,-297.04064662,0.00029,7]
[357916013,1744547576764,-297.04064662,0.00029,7]
[357916014,1744547576778,-608.88196981,0.00029,10]
[357916015,1744547576788,-2000.0,0.00029,2]
[357916016,1744547576798,-160.0,0.00029,7]
[357916017,1744547576809,-12544.73749783,0.00029,7]
[357916018,1744547576819,-160.0,0.00029,7]
[357916019,1744547576829,-160.0,0.00029,7]
[357916020,1744547576839,-419.89681905,0.00029,7]
[357916021,1744547576849,-419.89681905,0.00029,10]
[357916022,1744547576859,-838.34317751,0.00029,7]
[357916023,1744547576869,-160.0,0.00029,7]
[357916024,1744547576879,-2000.0,0.00029,4]
[357916025,1744547576889,-160.0,0.00029,7]
[357916026,1744547576898,-312.44791667,0.00029,7]
[357916027,1744547576909,-250.0,0.00029048,5]
[357916028,1744547576919,-600.0,0.00029091,2]
[357916029,1744547576929,-600.0,0.00029105,2]
[357916030,1744547576939,-926.83003122,0.00029161,2]
[357916031,1744547576949,-600.0,0.00029189,2]
[357916032,1744547576959,-500.0,0.00029193,2]
[357916033,1744547576969,-600.0,0.00029372,2]
[357916034,1744547576978,-500.0,0.00029439,2]
[357916035,1744547576988,-1500.0,0.00029466,7]
[357916036,1744547576998,-500.0,0.0002958,2]
[357916037,1744547577008,-350.0,0.00029596,5]
[357916038,1744547577017,-600.0,0.00029749,2]
[357916039,1744547577027,-500.0,0.00029837,2]
[357916040,1744547577036,-198.98,0.0003,30]
[357916041,1744547577046,-358813.122579,0.0003,2]
[357916042,1744547577056,-5377.95857771,0.0003,120]
[357916043,1744547577066,-506.30668144,0.0003,2]
[357916044,1744547577076,-913.85,0.0003,30]
[357916045,1744547577086,-796.0,0.0003,2]
[357916046,1744547577096,-232.0748,0.0003,14]
[357916047,1744547577106,-238.587,0.0003,2]
[357916048,1744547577115,-452.97794643,0.0003,10]
[357916049,1744547577125,-99998.14695573,0.0003,30]
[357916050,1744547577135,-160.0,0.0003,30]
[357916051,1744547577145,-160.0,0.0003,10]
[357916052,1744547577154,-160.0,0.0003,30]
[357916053,1744547577164,-419.89681905,0.0003,30]
[357916054,1744547577173,-287.0,0.0003,2]
[357916055,1744547577183,-838.34317751,0.0003,30]
[357916056,1744547577193,-312.44791667,0.0003,30]
[357916057,1744547577203,-500.0,0.00030081,7]
[357916058,1744547577215,-600.0,0.0003009,7]
[357916059,1744547577225,-500.0,0.00030108,7]
[357916060,1744547577235,-700.0,0.00030136,120]
[357916061,1744547577245,-572.20913024,0.00030136,120]
[357916062,1744547577255,-582.56865067,0.00030137,2]
[357916063,1744547577264,-250.0,0.00030137,30]
[357916064,1744547577274,-450.0,0.00030144,5]
[357916065,1744547577284,-500.0,0.0003043,7]
[357916066,1744547577295,-2258.0,0.00030474,2]
[357916067,1744547577305,-550.0,0.00030692,5]
[357916068,1744547577315,-500.0,0.00030704,7]
[357916069,1744547577324,-600.0,0.00030706,7]
[357916070,1744547577334,-600.0,0.00030924,7]
[357916071,1744547577343,-160.0,0.00031,7]
[357916072,1744547577353,-600.0,0.00031105,7]
[357916073,1744547577363,-1500.0,0.0003111,7]
[357916074,1744547577373,-600.0,0.00031201,7]
[357916075,1744547577383,-255.39972445,0.0003124,5]
[357916076,1744547577392,-600.0,0.00031295,7]
[357916077,1744547577402,-600.0,0.00031574,7]
[357916078,1744547577412,-600.0,0.00031594,7]
[357916079,1744547577423,-500.0,0.00031623,7]
[357916080,1744547577433,-600.0,0.00031768,7]
[357916081,1744547577442,-600.0,0.00031789,7]
[357916082,1744547577453,-500.0,0.00031849,7]
[357916083,1744547577462,-1333.0,0.00031945,120]
[357916084,1744547577473,-300.0,0.00032,7]
[357916085,1744547577482,-1000.0,0.00032,2]
[357916086,1744547577493,-500.0,0.00032024,7]
[357916087,1744547577503,-223.4719,0.000323,120]
[357916088,1744547577514,-200.0,0.000323,120]
[357916089,1744547577524,-600.0,0.00032362,7]
[357916090,1744547577534,-5000.0,0.000324,2]
[357916091,1744547577543,-600.0,0.00032457,7]
[357916092,1744547577554,-600.0,0.00032487,7]
[357916093,1744547577564,-600.0,0.00032506,7]
[357916094,1744547577575,-187.14652114,0.00032658,9]
[357916095,1744547577584,-600.0,0.00032699,7]
[357916096,1744547577594,-1500.0,0.00032754,7]
[357916097,1744547577603,-349.95533259,0.00032876,2]
[357916098,1744547577614,-500.0,0.00032876,120]
[357916099,1744547577624,-500.0,0.00032876,120]
[357916100,1744547577635,-500.0,0.00032876,120]
[357916101,1744547577645,-375.86429623,0.00032876,120]
[357916102,1744547577656,-455.37947066,0.00032876,2]
[357916103,1744547577666,-359.81688312,0.00032876,2]
[357916104,1744547577676,-289.39397928,0.00032876,2]
[357916105,1744547577686,-500.0,0.00032876,2]
[357916106,1744547577696,-537.71361098,0.00032876,2]
[357916107,1744547577707,-437.3585683,0.00032876,2]
[357916108,1744547577718,-300.0,0.00032876,30]
[357916109,1744547577728,-300.0,0.00032876,30]
[357916110,1744547577738,-300.0,0.00032876,30]
[357916111,1744547577748,-300.0,0.00032876,30]
[357916112,1744547577758,-300.0,0.00032876,30]
[357916113,1744547577770,-300.0,0.00032876,30]
[357916114,1744547577780,-300.0,0.00032876,30]
[357916115,1744547577791,-300.0,0.00032876,30]
[357916116,1744547577801,-300.0,0.00032876,30]
[357916117,1744547577811,-300.0,0.00032876,30]
[357916118,1744547577822,-300.0,0.00032876,30]
[357916119,1744547577833,-300.0,0.00032876,30]
[357916120,1744547577843,-300.0,0.00032876,30]
[357916121,1744547577854,-300.0,0.00032876,30]
[357916122,1744547577864,-300.0,0.00032876,30]
[357916123,1744547577874,-300.0,0.00032876,30]
[357916124,1744547577884,-300.0,0.00032876,30]
[357916125,1744547577894,-300.0,0.00032876,30]
[357916126,1744547577904,-300.0,0.00032876,30]
[357916127,1744547577914,-300.0,0.00032876,30]
[357916128,1744547577923,-300.0,0.00032876,30]
[357916129,1744547577934,-322.02550798,0.00032876,30]
[357916130,1744547577944,-500.0,0.00032877,2]
[357916131,1744547577954,-500.0,0.00032877,2]
[357916132,1744547577964,-238.639,0.00032877,30]
[357916133,1744547577974,-1000.0,0.00032877,5]
[357916134,1744547577984,-238.24,0.000329,7]
[357916135,1744547577994,-2077.2,0.000329,30]
[357916136,1744547578003,-500.0,0.00033,14]
[357916137,1744547578013,-500.0,0.00033,7]
[357916138,1744547578023,-202.03661736,0.00033,14]
[357916139,1744547578033,-160.0,0.00033,30]
[357916140,1744547578044,-160.0,0.00033,120]
[357916141,1744547578054,-419.89681905,0.00033,120]
[357916142,1744547578063,-287.0,0.00033,2]
[357916143,1744547578073,-287.0,0.00033,2]
[357916144,1744547578082,-312.44791667,0.00033,120]
[357916145,1744547578092,-500.0,0.00033077,7]
[357916146,1744547578102,-600.0,0.00033137,7]
[357916147,1744547578112,-500.0,0.00033158,7]
[357916148,1744547578122,-427.77276848,0.00033171,7]
[357916149,1744547578132,-3162.0,0.00033248,2]
[357916150,1744547578142,-600.0,0.00033282,7]
[357916151,1744547578151,-600.0,0.00033283,7]
[357916152,1744547578162,-500.0,0.00033365,7]
[357916153,1744547578172,-600.0,0.00033366,7]
[357916154,1744547578182,-718.43263207,0.00033426,7]
[357916155,1744547578192,-600.0,0.00033655,7]
[357916156,1744547578202,-600.0,0.00033703,7]
[357916157,1744547578212,-467.57347808,0.00033753,2]
[357916158,1744547578222,-600.0,0.00033816,7]
[357916159,1744547578231,-600.0,0.00033867,7]
[357916160,1744547578241,-500.0,0.00034,2]
[357916161,1744547578251,-1000.0,0.00034,120]
[357916162,1744547578260,-160.0,0.00034,7]
[357916163,1744547578270,-160.0,0.00034,7]
[357916164,1744547578280,-419.89681905,0.00034,7]
[357916165,1744547578290,-838.34317751,0.00034,7]
[357916166,1744547578300,-600.0,0.00034014,7]
[357916167,1744547578310,-600.0,0.00034279,7]
[357916168,1744547578320,-600.0,0.0003435,7]
[357916169,1744547578329,-1500.0,0.00034398,60]
[357916170,1744547578339,-500.0,0.00034403,7]
[357916171,1744547578349,-600.0,0.00034477,7]
[357916172,1744547578358,-500.0,0.00034501,7]
[357916173,1744547578368,-684.48933233,0.00034536,7]
[357916174,1744547578378,-238.24,0.000346,7]
[357916175,1744547578387,-2077.2,0.000346,30]
[357916176,1744547578397,-600.0,0.00034633,7]
[357916177,1744547578407,-600.0,0.00034649,7]
[357916178,1744547578417,-991.84357428,0.00034666,7]
[357916179,1744547578427,-365.20452727,0.00034671,2]
[357916180,1744547578437,-1001.66077925,0.00034671,5]
[357916181,1744547578448,-1500.0,0.00034671,5]
[357916182,1744547578458,-1501.64381591,0.00034671,5]
[357916183,1744547578468,-934.419837,0.00034671,5]
[357916184,1744547578479,-1500.0,0.00034671,5]
[357916185,1744547578490,-1500.0,0.00034671,5]
[357916186,1744547578499,-1500.0,0.00034671,5]
[357916187,1744547578510,-1002.02561676,0.00034671,5]
[357916188,1744547578521,-1500.0,0.00034671,5]
[357916189,1744547578531,-1500.0,0.00034671,5]
[357916190,1744547578542,-1500.0,0.00034671,5]
[357916191,1744547578553,-1500.0,0.00034671,5]
[357916192,1744547578563,-1500.0,0.00034671,5]
[357916193,1744547578573,-1500.0,0.00034671,5]
[357916194,1744547578584,-500.0116306,0.00034671,5]
[357916195,1744547578594,-1500.0,0.00034671,5]
[357916196,1744547578604,-1500.0,0.00034671,5]
[357916197,1744547578614,-1500.0,0.00034671,5]
[357916198,1744547578624,-535.02262464,0.00034671,5]
[357916199,1744547578634,-1500.0,0.00034671,5]
[357916200,1744547578644,-1500.0,0.00034671,5]
[357916201,1744547578654,-1500.0,0.00034671,5]
[357916202,1744547578664,-1500.0,0.00034671,5]
[357916203,1744547578674,-1500.0,0.00034671,2]
[357916204,1744547578684,-1500.0,0.00034671,5]
[357916205,1744547578695,-1500.0,0.00034671,5]
[357916206,1744547578705,-1010.19834107,0.00034741,7]
[357916207,1744547578715,-3712.84,0.000348,30]
[357916208,1744547578725,-3135.50288657,0.0003487,4]
[357916209,1744547578735,-3703.53837784,0.0003499,30]
[357916210,1744547578744,-10570.42161633,0.00035,2]
[357916211,1744547578754,-200.0,0.00035,14]
[357916212,1744547578765,-2868.0,0.00035,2]
[357916213,1744547578777,-6712.0,0.00035,2]
[357916214,1744547578787,-1821.0,0.00035,2]
[357916215,1744547578797,-300.0,0.00035,14]
[357916216,1744547578807,-160.60988466,0.00035,120]
[357916217,1744547578819,-500.0,0.00035,2]
[357916218,1744547578829,-300000.0,0.00035,120]
[357916219,1744547578839,-160.0,0.00035,120]
[357916220,1744547578850,-160.0,0.00035,7]
[357916221,1744547578860,-200.52075,0.00035,5]
[357916222,1744547578871,-160.0,0.00035,7]
[357916223,1744547578881,-419.89681905,0.00035,120]
[357916224,1744547578890,-312.44791667,0.00035,7]
[357916225,1744547578900,-312.44791667,0.00035,120]
[357916226,1744547578910,-500.0,0.000353,14]
[357916227,1744547578920,-1500.0,0.00035494,60]
[357916228,1744547578930,-210.0,0.00035521,5]
[357916229,1744547578940,-1126.7862794,0.00035562,7]
[357916230,1744547579033,-1546.89,0.00035616,2]
[357916231,1744547579046,-1546.89,0.00035616,2]
[357916232,1744547579056,-1546.89,0.00035616,2]
[357916233,1744547579066,-1546.89,0.00035616,2]
[357916234,1744547579076,-1546.89,0.00035616,2]
[357916235,1744547579086,-1546.89,0.00035616,2]
[357916236,1744547579095,-1546.89,0.00035616,2]
[357916237,1744547579105,-1546.89,0.00035616,2]
[357916238,1744547579115,-1546.89,0.00035616,2]
[357916239,1744547579125,-1546.89,0.00035616,2]
[357916240,1744547579134,-1546.89,0.00035616,2]
[357916241,1744547579144,-1546.89,0.00035616,2]
[357916242,1744547579154,-1546.89,0.00035616,2]
[357916243,1744547579164,-1546.89,0.00035616,2]
[357916244,1744547579175,-1546.89,0.00035616,2]
[357916245,1744547579185,-1546.89,0.00035616,2]
[357916246,1744547579195,-1546.89,0.00035616,2]
[357916247,1744547579205,-1546.89,0.00035616,2]
[357916248,1744547579215,-1546.89,0.00035616,2]
[357916249,1744547579226,-1546.89,0.00035616,2]
[357916250,1744547579235,-1546.89,0.00035616,2]
[357916251,1744547579246,-1546.89,0.00035616,2]
[357916252,1744547579256,-1546.89,0.00035616,2]
[357916253,1744547579265,-1546.90749339,0.00035616,2]
[357916254,1744547579275,-358.08076003,0.00035616,7]
[357916255,1744547579286,-500.0,0.00035616,7]
[357916256,1744547579296,-335.52177339,0.00035616,7]